bitfinex-derivatives/quotes_SOLF0:USTF0_20250803
["timestamp","ask_amount","ask_price","bid_price","bid_amount"]
[1754263533605,4.46170727,162.48,162.47,8.3744]
[1754263533812,3.34,162.5,162.48,8.374]
[1754263534003,3.34,162.5,162.47,4.51385505]
[1754263534602,3.34,162.52,162.48,8.3743]
[1754263534808,3.34,162.5,162.48,6.1543]
[1754263536507,3.34,162.49,162.48,6.1543]
[1754263536709,3.34,162.53,162.49,6.1539]
[1754263537009,3.34,162.5,162.49,8.3739]
[1754263539211,3.34,162.5,162.49,6.1539]
[1754263539909,3.34,162.5,162.48,6.1542]
[1754263541613,3.34,162.5,162.47,6.1546]
[1754263541806,3.34,162.53,162.45,6.73385505]
[1754263542106,3.34,162.51,162.45,6.73385505]
[1754263542312,3.34,162.5,162.45,6.73385505]
[1754263542510,3.34,162.5,162.46,2.22]
[1754263542911,9.4936,162.5,162.46,8.375]
[1754263543108,3.34,162.49,162.44,114.6]
[1754263543611,6.1542,162.49,162.44,116.82]
[1754263543814,3.34,162.48,162.44,114.6]
[1754263544516,3.34,162.48,162.44,116.82]
[1754263544716,3.34,162.48,162.45,6.1554]
[1754263544913,3.34,162.48,162.44,114.6]
[1754263545110,3.3,162.47,162.42,6.1564]
[1754263545617,3.3,162.45,162.41,6.1567]
[1754263546417,6.1555,162.45,162.42,6.1566]
[1754263546611,4.51385505,162.48,162.39,527.96]
[1754263546612,3.3,162.44,162.39,114.5]
[1754263547115,3.3,162.44,162.39,116.72]
[1754263547716,3.3,162.42,162.35,238.59565804]
[1754263547928,3.3,162.42,162.35,240.81565804]
[1754263548215,6.1573,162.41,162.37,6.1585]
[1754263548420,3.3,162.4,162.37,6.1585]
[1754263549418,3.3,162.39,162.36,6.1588]
[1754263549618,3.3,162.39,162.36,2.22]
[1754263549809,4.51385505,162.42,162.37,6.1582]
[1754263549810,3.3,162.38,162.37,6.1582]
[1754263552020,3.3,162.38,162.37,8.3782]
[1754263553224,3.3,162.41,162.39,6.1575]
[1754263553422,4.48217592,162.4,162.37,2.22]
[1754263553720,6.1573,162.41,162.36,6.1586]
[1754263553912,3.3,162.39,162.36,6.1586]
[1754263554518,3.3,162.39,162.34,114.5]
[1754263554920,6.1584,162.38,162.34,114.5]
[1754263555223,3.3,162.37,162.34,114.5]
[1754263556222,3.3,162.37,162.34,116.72]
[1754263556721,3.3,162.38,162.35,8.3789]
[1754263557321,3.3,162.39,162.37,2.22]
[1754263557522,3.3,162.39,162.35,4.51385505]
[1754263557727,3.3,162.39,162.38,2.22]
[1754263558028,7.78140775,162.39,162.38,2.22]
[1754263558427,7.78140775,162.39,162.38,8.3781]
[1754263558625,4.48140775,162.39,162.38,8.3781]
[1754263559421,3.3,162.39,162.38,6.1581]
[1754263559917,7.77931604,162.39,162.38,6.1581]
[1754263560323,3.3,162.39,162.38,6.1581]
[1754263561028,6.91238111,162.46,162.39,6.1577]
[1754263561328,26.01569407,162.52,162.39,2.22]
[1754263561329,3.3,162.44,162.39,2.22]
[1754263561528,10.63612951,162.43,162.35,4.51385505]
[1754263561730,3.3,162.41,162.38,2.22]
[1754263562227,3.3,162.41,162.38,8.3778]
[1754263562623,3.3,162.41,162.36,2.22]
[1754263562824,7.81385505,162.41,162.34,116.72]
[1754263563026,3.3,162.39,162.34,116.72]
[1754263563226,3.3,162.39,162.35,6.159]
[1754263563424,3.3,162.39,162.34,116.72]
[1754263563425,4.51385505,162.43,162.34,119.01385505]
[1754263563628,3.3,162.41,162.35,2.22]
[1754263563928,3.3,162.38,162.37,8.3782]
[1754263564235,3.3,162.38,162.37,2.22]
[1754263564733,3.3,162.44,162.37,2.22]
[1754263564922,4.51385505,162.45,162.37,2.22]
[1754263564923,4.47909619,162.43,162.37,2.22]
[1754263565229,4.47909619,162.42,162.39,2.22]
[1754263565430,3.3,162.43,162.4,4.51385505]
[1754263565633,4.4777771,162.42,162.41,2.22]
[1754263565930,3.3,162.41,162.39,2.22]
[1754263566335,3.3,162.49,162.39,2.22]
[1754263566529,3.3,162.47,162.39,2.22]
[1754263566729,3.3,162.45,162.39,2.22]
[1754263566929,4.4779729,162.44,162.39,2.22]
[1754263567228,7.77864995,162.43,162.35,2.22]
[1754263567434,3.3,162.43,162.35,2.22]
[1754263568227,6.1569,162.42,162.35,2.22]
[1754263568534,3.3,162.41,162.35,2.22]
[1754263568831,3.3,162.41,162.34,119.01385505]
[1754263568832,3.3,162.41,162.37,8.3782]
[1754263569223,6.1569,162.42,162.37,6.1582]
[1754263569430,6.1569,162.42,162.34,119.01385505]
[1754263569431,3.3,162.4,162.39,2.22]
[1754263569826,10.66875505,162.47,162.4,6.1573]
[1754263570032,3.3,162.45,162.4,6.1573]
[1754263570230,3.3,162.43,162.4,6.1573]
[1754263570734,3.3,162.47,162.4,6.73385505]
[1754263570927,4.47872368,162.46,162.41,2.22]
[1754263571134,4.47872368,162.45,162.42,2.22]
[1754263571438,3.3,162.43,162.42,2.22]
[1754263571938,87.3041907,164.58,162.42,2.22]
[1754263571939,4.51385505,162.5,162.42,2.22]
[1754263572241,3.3,162.45,162.44,2.22]
[1754263572442,3.3,162.48,162.44,6.73385505]
[1754263572637,4.47823283,162.47,162.44,4.51385505]
[1754263572938,3.3,162.48,162.46,2.22]
[1754263573643,3.3,162.48,162.47,6.1547]
[1754263575131,3.3,162.48,162.47,2.22]
[1754263575534,3.3,162.48,162.45,2.22]
[1754263575744,3.3,162.48,162.46,2.22]
[1754263576242,10.66595505,162.54,162.49,6.1538]
[1754263576443,4.47698822,162.53,162.46,2.22]
[1754263576634,4.47698822,162.52,162.46,2.22]
[1754263576834,3.3,162.5,162.46,2.22]
[1754263577435,3.3,162.5,162.49,6.1539]
[1754263578738,165.16224196,162.55,162.53,6.1524]
[1754263578936,3.3,162.53,162.49,2.22]
[1754263579547,3.3,162.53,162.5,2.22]
[1754263579946,3.3,162.53,162.48,4.51385505]
[1754263580244,3.3,162.53,162.52,6.1528]
[1754263582639,3.3,162.53,162.52,8.3728]
[1754263583040,19.49532782,162.59,162.56,6.1512]
[1754263583240,4.46901707,162.58,162.56,6.1512]
[1754263583446,4.51385505,162.59,162.52,2.22]
[1754263583648,4.46896962,162.58,162.55,6.1516]
[1754263583947,4.51385505,162.59,162.5,4.51385505]
[1754263583948,3.3,162.57,162.5,4.51385505]
[1754263584251,3.3,162.56,162.5,2.22]
[1754263584546,3.3,162.56,162.54,6.1519]
[1754263584747,3.3,162.56,162.49,4.51385505]
[1754263584947,3.3,162.56,162.5,2.22]
[1754263585143,3.3,162.56,162.54,6.1517]
[1754263586540,3.3,162.56,162.55,6.1517]
[1754263588350,3.3,162.56,162.54,6.152]
[1754263589545,3.3,162.56,162.52,2.22]
[1754263590548,3.3,162.56,162.5,2.22]
[1754263591350,3.3,162.56,162.52,6.1525]
[1754263591853,3.3,162.56,162.53,6.1524]
[1754263592049,3.3,162.56,162.53,2.22]
[1754263592250,3.3,162.55,162.54,2.22]
[1754263593256,3.3,162.55,162.54,8.372]
[1754263593952,3.3,162.55,162.53,6.1523]
[1754263594152,3.3,162.54,162.53,8.3723]
[1754263596358,118.87385505,162.62,162.54,2.22]
[1754263596545,3.3,162.58,162.54,2.22]
[1754263596958,118.87385505,162.62,162.57,6.1506]
[1754263597151,4.45377498,162.61,162.55,2.22]
[1754263597454,4.45377498,162.6,162.57,8.3706]
[1754263597660,3.3,162.58,162.57,6.1506]
[1754263598861,3.3,162.58,162.57,8.3706]
[1754263599859,3.3,162.58,162.57,2.22]
[1754263600062,3.3,162.58,162.56,6.1512]
[1754263600252,3.3,162.57,162.56,8.3712]
[1754263600459,3.3,162.57,162.56,6.1512]
[1754263603952,3.3,162.57,162.56,8.3812]
[1754263606163,3.44,162.62,162.56,2.23]
[1754263606363,3.44,162.6,162.57,2.23]
[1754263606554,3.44,162.6,162.59,6.1502]
[1754263606755,3.44,162.67,162.59,2.23]
[1754263606950,3.44,162.64,162.61,4.51385505]
[1754263607252,3.44,162.64,162.63,2.23]
[1754263607459,3.44,162.64,162.61,6.74385505]
[1754263607866,3.44,162.64,162.62,6.1488]
[1754263608155,3.44,162.63,162.62,8.3788]
[1754263613464,3.44,162.63,162.62,6.1488]
[1754263615786,3.44,162.62,162.61,12.89315505]
[1754263616687,3.44,162.64,162.63,6.1485]
[1754263617390,4.48445507,162.64,162.6,2.23]
[1754263617690,3.44,162.67,162.58,2.23]
[1754263617885,3.44,162.62,162.57,4.51385505]
[1754263618282,3.44,162.66,162.61,4.51385505]
[1754263618489,3.44,162.66,162.62,2.23]
[1754263619184,3.44,162.66,162.63,6.1486]
[1754263620289,3.44,162.66,162.62,6.1489]
[1754263620494,4.48740458,162.65,162.62,6.1489]
[1754263620687,3.44,162.64,162.62,6.1489]
[1754263621990,3.44,162.64,162.63,6.1486]
[1754263622191,3.44,162.64,162.6,2.23]
[1754263622394,3.44,162.63,162.6,2.23]
[1754263623194,3.44,162.63,162.62,6.149]
[1754263623392,3.44,162.63,162.62,8.379]
[1754263625891,4.51385505,162.69,162.59,4.51385505]
[1754263626096,3.44,162.67,162.63,4.51385505]
[1754263626295,3.44,162.66,162.64,2.23]
[1754263626496,3.44,162.66,162.65,2.23]
[1754263626992,6.91238111,162.72,162.65,2.23]
[1754263627187,4.48982147,162.71,162.65,2.23]
[1754263627387,3.44,162.69,162.68,6.1468]
[1754263627694,7.92982147,162.69,162.68,6.1468]
[1754263627889,7.92894616,162.69,162.68,6.1468]
[1754263628291,3.44,162.69,162.68,6.1468]
[1754263632703,3.44,162.69,162.68,8.3768]
[1754263633801,3.44,162.69,162.68,6.1468]
[1754263636492,7.95385505,162.69,162.67,6.1471]
[1754263636698,3.33,162.68,162.6,114.1]
[1754263636999,4.51385505,162.67,162.6,116.31]
[1754263637203,3.33,162.66,162.6,116.31]
[1754263638302,4.51385505,162.65,162.55,2.21]
[1754263638605,3.33,162.64,162.57,2.21]
[1754263639705,3.33,162.64,162.62,6.1489]
[1754263641702,3.33,162.71,162.61,2.21]
[1754263642003,3.33,162.71,162.6,4.51385505]
[1754263642004,3.33,162.69,162.66,4.51385505]
[1754263642304,3.33,162.69,162.68,6.1467]
[1754263642507,3.33,162.69,162.68,8.3567]
[1754263643504,3.33,162.69,162.68,6.1467]
[1754263644004,3.33,162.68,162.67,6.1471]
[1754263645011,3.33,162.71,162.65,2.21]
[1754263645308,6.91238111,162.72,162.66,4.51385505]
[1754263645511,3.33,162.7,162.69,6.1464]
[1754263646710,3.33,162.7,162.67,6.1468]
[1754263647205,3.33,162.7,162.58,214.06]
[1754263647206,3.33,162.7,162.68,6.1467]
[1754263647810,3.33,162.7,162.66,2.21]
[1754263648011,3.33,162.7,162.67,2.21]
[1754263648411,3.33,162.7,162.68,6.1467]
[1754263649410,3.33,162.74,162.68,2.21]
[1754263649714,3.33,162.72,162.68,2.21]
[1754263649911,3.33,162.7,162.69,6.1461]
[1754263650112,7.83408922,162.7,162.69,6.1461]
[1754263650309,3.33,162.7,162.69,6.1461]
[1754263652619,3.33,162.7,162.69,8.3561]
[1754263653220,3.33,162.7,162.69,6.1461]
[1754263653418,7.83580673,162.7,162.69,6.1461]
[1754263655519,4.50580673,162.7,162.67,6.147]
[1754263655718,3.33,162.69,162.67,6.147]
[1754263656222,6.1453,162.72,162.64,2.21]
[1754263656425,3.33,162.68,162.64,2.21]
[1754263656825,3.33,162.68,162.67,6.1471]
[1754263657128,3.33,162.68,162.67,8.3571]
[1754263657618,3.33,162.68,162.67,6.1471]
[1754263660427,3.33,162.68,162.67,8.3571]
[1754263661128,3.33,162.72,162.7,6.1459]
[1754263661333,7.83880288,162.71,162.7,6.1459]
[1754263662329,7.83880288,162.71,162.7,8.3559]
[1754263662524,4.50880288,162.71,162.7,8.3559]
[1754263663029,7.83880288,162.71,162.7,8.3559]
[1754263665632,7.83880288,162.71,162.7,6.1459]
[1754263667541,7.83880288,162.71,162.7,8.3459]
[1754263669141,7.83880288,162.71,162.7,6.1459]
[1754263669542,3.33,162.71,162.7,6.1459]
[1754263671542,7.82190224,162.71,162.7,6.1459]
[1754263672254,7.82190224,162.71,162.69,6.1462]
[1754263672540,3.37,162.72,162.67,6.71385505]
[1754263672741,3.37,162.7,162.69,8.3464]
[1754263672934,7.86217917,162.7,162.69,6.1464]
[1754263673134,3.37,162.74,162.69,6.1464]
[1754263673334,3.37,162.72,162.62,2.2]
[1754263673543,3.37,162.7,162.62,2.2]
[1754263673743,3.37,162.68,162.62,2.2]
[1754263673944,3.37,162.66,162.62,2.2]
[1754263674646,3.37,162.66,162.65,6.1479]
[1754263674845,7.86317664,162.66,162.65,6.1479]
[1754263675746,7.86317664,162.66,162.65,8.3479]
[1754263676044,3.37,162.69,162.68,6.1467]
[1754263681344,3.37,162.72,162.71,6.1454]
[1754263690847,8.06837604,162.72,162.71,6.1454]
[1754263696546,3.22,162.71,162.66,2.2]
[1754263696745,4.69837604,162.7,162.64,2.2]
[1754263696951,3.22,162.68,162.65,2.2]
[1754263697156,7.91837604,162.67,162.66,6.1475]
[1754263700164,4.69837604,162.67,162.65,6.1478]
[1754263700354,7.91837604,162.66,162.65,6.1478]
[1754263700751,3.22,162.65,162.61,2.2]
[1754263700955,3.22,162.63,162.61,2.2]
[1754263701156,3.22,162.61,162.6,8.3498]
[1754263701361,7.91837604,162.61,162.6,6.1498]
[1754263701860,7.91837604,162.61,162.6,8.3498]
[1754263702252,3.22,162.66,162.65,6.1477]
[1754263703254,3.22,162.66,162.64,6.1482]
[1754263703461,3.22,162.66,162.6,4.51385505]
[1754263703758,3.22,162.66,162.62,2.2]
[1754263704057,3.22,162.65,162.61,2.2]
[1754263704257,3.22,162.65,162.62,2.2]
[1754263704861,4.51385505,162.68,162.65,6.1479]
[1754263705062,3.22,162.67,162.65,6.1479]
[1754263707764,3.22,162.68,162.66,6.1474]
[1754263708065,3.22,162.67,162.64,2.2]
[1754263708963,3.22,162.67,162.65,2.2]
[1754263709162,3.22,162.67,162.66,6.1475]
[1754263711668,6.91238111,162.71,162.62,4.51385505]
[1754263711966,3.22,162.7,162.65,2.2]
[1754263712265,3.22,162.7,162.69,6.1461]
[1754263712467,3.22,162.7,162.69,8.3461]
[1754263713072,10.65875505,162.73,162.68,8.3467]
[1754263713264,3.22,162.72,162.66,2.2]
[1754263713571,3.22,162.72,162.64,2.2]
[1754263713766,9.3655,162.72,162.67,6.1468]
[1754263714072,3.22,162.71,162.67,6.1468]
[1754263714373,4.60330432,162.7,162.67,6.1468]
[1754263714569,7.82330432,162.69,162.68,6.1467]
[1754263715772,4.60330432,162.69,162.68,8.3467]
[1754263716161,3.22,162.71,162.7,6.146]
[1754263716375,7.8235532,162.71,162.7,8.346]
[1754263716975,4.6035532,162.71,162.7,8.346]
[1754263717772,3.22,162.73,162.72,6.1452]
[1754263718076,7.82396121,162.73,162.72,8.3452]
[1754263718374,7.82396121,162.73,162.72,6.1452]
[1754263719071,3.22,162.72,162.71,6.1456]
[1754263719267,7.82396121,162.72,162.71,6.1456]
[1754263719673,3.22,162.71,162.7,6.1459]
[1754263719871,7.82396121,162.71,162.7,6.1459]
[1754263720574,3.22,162.72,162.71,8.3456]
[1754263720773,7.82287313,162.72,162.71,8.3456]
[1754263722979,7.82287313,162.72,162.71,6.1456]
[1754263723773,4.60287313,162.72,162.69,8.346]
[1754263723978,3.27,162.7,162.69,2.2]
[1754263724379,3.27,162.7,162.69,8.3464]
[1754263726180,3.27,162.7,162.68,6.1464]
[1754263726374,4.6012283,162.69,162.66,2.21]
[1754263726578,3.27,162.67,162.66,2.21]
[1754263726779,3.27,162.66,162.65,8.3578]
[1754263727282,3.27,162.66,162.65,6.1478]
[1754263727676,3.27,162.66,162.63,2.21]
[1754263727983,3.27,162.66,162.61,113.76]
[1754263727984,4.60259512,162.65,162.61,115.97]
[1754263728181,3.27,162.63,162.61,115.97]
[1754263728388,3.27,162.66,162.58,2.21]
[1754263728578,6.91238111,162.68,162.56,4.51385505]
[1754263728579,3.27,162.61,162.56,2.21]
[1754263728771,3.27,162.59,162.56,2.21]
[1754263728978,3.27,162.58,162.57,6.1506]
[1754263729582,3.27,162.58,162.57,8.3606]
[1754263729889,3.27,162.59,162.57,2.21]
[1754263730174,3.27,162.58,162.57,2.21]
[1754263730579,3.27,162.58,162.57,8.3608]
[1754263730780,3.27,162.58,162.57,6.1508]
[1754263731168,4.51385505,162.61,162.56,6.1512]
[1754263731370,3.27,162.59,162.56,6.1512]
[1754263731677,3.27,162.59,162.55,115.97]
[1754263731878,3.27,162.59,162.56,2.21]
[1754263733174,3.27,162.59,162.57,6.1508]
[1754263734371,3.27,162.59,162.58,6.1505]
[1754263742087,3.27,162.63,162.57,2.22]
[1754263742287,3.27,162.61,162.57,2.22]
[1754263742486,3.27,162.6,162.57,2.22]
[1754263743085,3.27,162.6,162.59,6.1501]
[1754263744581,3.27,162.6,162.59,8.3701]
[1754263746892,6.1476,162.66,162.58,4.51385505]
[1754263746893,4.51385505,162.66,162.58,4.51385505]
[1754263747094,4.579153,162.65,162.59,2.22]
[1754263747397,3.27,162.63,162.59,2.22]
[1754263747597,3.27,162.62,162.59,2.22]
[1754263748993,4.51385505,162.66,162.63,6.1485]
[1754263749700,3.27,162.65,162.63,6.1485]
[1754263752000,3.27,162.63,162.57,2.22]
[1754263754106,3.27,162.63,162.61,6.1491]
[1754263754701,3.27,162.63,162.62,6.149]
[1754263756301,3.27,162.63,162.61,6.1493]
[1754263762107,3.27,162.63,162.56,2.21]
[1754263762108,4.51385505,162.62,162.56,2.21]
[1754263762312,3.47,162.61,162.56,2.21]
[1754263762708,3.47,162.61,162.59,6.1501]
[1754263763821,3.47,162.61,162.58,6.1505]
[1754263765922,3.47,162.59,162.58,6.1505]
[1754263767317,8.03976471,162.59,162.58,6.1505]
[1754263771519,8.03976471,162.59,162.57,6.1509]
[1754263771725,8.03976471,162.58,162.57,6.1509]
[1754263772628,4.56976471,162.58,162.56,6.1512]
[1754263772929,8.03976471,162.57,162.56,6.1512]
[1754263773726,8.03976471,162.57,162.52,113.7]
[1754263773727,3.47,162.56,162.52,115.91]
[1754263773925,4.58899067,162.55,162.52,115.91]
[1754263774126,3.47,162.54,162.52,115.91]
[1754263774519,3.47,162.54,162.53,8.3622]
[1754263775018,3.47,162.54,162.53,6.1522]
[1754263776029,3.47,162.54,162.53,8.3622]
[1754263779027,8.05703064,162.54,162.53,8.3622]
[1754263780524,8.05703064,162.54,162.53,6.1522]
[1754263782526,8.05703064,162.54,162.53,8.3622]
[1754263784131,8.05703064,162.54,162.53,6.1522]
[1754263784338,7.94703064,162.54,162.53,8.3622]
[1754263785730,7.94703064,162.54,162.53,6.1522]
[1754263786125,7.94703064,162.54,162.53,8.3622]
[1754263786324,7.94703064,162.54,162.48,655.12867224]
[1754263786521,3.36,162.52,162.45,2.21]
[1754263786726,4.51385505,162.51,162.44,2.21]
[1754263786932,3.36,162.5,162.46,6.1548]
[1754263787534,3.36,162.49,162.45,119.7952]
[1754263787736,3.36,162.49,162.45,113.64]
[1754263788137,3.36,162.48,162.46,6.155]
[1754263788937,3.36,162.48,162.45,113.64]
[1754263789135,3.36,162.46,162.4,115.85]
[1754263789529,3.36,162.46,162.41,2.21]
[1754263789733,3.36,162.46,162.43,6.1559]
[1754263790228,3.36,162.46,162.45,6.1554]
[1754263790434,3.36,162.47,162.41,2.21]
[1754263791138,3.36,162.45,162.4,113.64]
[1754263791333,4.51385505,162.44,162.4,113.64]
[1754263791631,3.36,162.43,162.4,113.64]
[1754263792032,3.36,162.43,162.4,119.7972]
[1754263792936,3.36,162.43,162.4,113.64]
[1754263793839,3.36,162.43,162.39,6.1577]
[1754263794233,3.36,162.42,162.39,6.1577]
[1754263794734,3.36,162.42,162.4,8.3673]
[1754263794938,3.36,162.42,162.41,2.21]
[1754263795437,3.36,162.42,162.41,8.3669]
[1754263796638,3.36,162.42,162.41,6.1569]
[1754263798439,4.51385505,162.45,162.37,113.66]
[1754263798639,3.36,162.44,162.41,2.21]
[1754263799036,10.66875505,162.47,162.41,2.21]
[1754263799037,3.36,162.43,162.41,2.21]
[1754263799435,3.36,162.43,162.42,8.3662]
[1754263799744,3.36,162.43,162.42,2.21]
[1754263799945,3.36,162.42,162.41,2.21]
[1754263800142,3.36,162.42,162.4,6.157]
[1754263800342,3.36,162.44,162.38,2.21]
[1754263801045,3.36,162.47,162.4,2.21]
[1754263801241,3.36,162.47,162.42,2.21]
[1754263801746,6.91238111,162.52,162.43,2.21]
[1754263801949,3.36,162.45,162.44,8.3658]
[1754263803043,10.66795505,162.49,162.45,8.3653]
[1754263803044,3.36,162.48,162.45,8.3653]
[1754263803350,3.36,162.48,162.42,2.21]
[1754263803547,3.36,162.48,162.46,6.155]
[1754263803950,3.36,162.48,162.45,2.21]
[1754263804151,3.36,162.5,162.42,6.72385505]
[1754263804348,3.36,162.51,162.45,2.21]
[1754263804653,3.36,162.52,162.46,2.21]
[1754263804851,3.36,162.52,162.47,6.1544]
[1754263805148,3.36,162.52,162.48,2.21]
[1754263806152,3.36,162.51,162.48,2.21]
[1754263806540,171.65673239,162.55,162.48,2.21]
[1754263806744,3.36,162.53,162.48,2.21]
[1754263807346,3.36,162.53,162.5,2.21]
[1754263807848,3.36,162.53,162.5,8.3633]
[1754263808549,3.36,162.53,162.49,6.1538]
[1754263808750,3.36,162.54,162.5,2.21]
[1754263809152,3.36,162.54,162.51,2.21]
[1754263809351,3.36,162.52,162.51,2.21]
[1754263810059,3.36,162.52,162.49,6.1538]
[1754263810558,3.36,162.52,162.49,8.3638]
[1754263811047,3.36,162.51,162.46,2.21]
[1754263811253,3.36,162.51,162.45,118.15385505]
[1754263811654,3.36,162.51,162.47,6.1543]
[1754263811953,3.36,162.51,162.47,8.3643]
[1754263812553,3.36,162.5,162.45,113.64]
[1754263812768,3.36,162.51,162.44,2.21]
[1754263812954,3.36,162.49,162.44,4.51385505]
[1754263813150,3.36,162.49,162.46,8.3649]
[1754263813855,3.48,162.54,162.48,2.23]
[1754263814052,3.48,162.52,162.49,2.23]
[1754263814264,4.55371604,162.51,162.49,2.23]
[1754263814462,3.48,162.52,162.49,2.23]
[1754263815161,3.48,162.52,162.5,2.23]
[1754263815359,3.48,162.54,162.48,2.23]
[1754263815554,3.48,162.52,162.48,8.3842]
[1754263816256,3.48,162.52,162.48,2.23]
[1754263816856,169.25820633,162.55,162.44,113.62]
[1754263816857,3.48,162.5,162.44,113.62]
[1754263817056,3.48,162.48,162.41,2.23]
[1754263817251,4.51385505,162.47,162.41,2.23]
[1754263817457,3.48,162.45,162.41,8.3869]
[1754263818459,3.48,162.45,162.41,2.23]
[1754263818964,3.48,162.44,162.39,6.1576]
[1754263819165,3.48,162.44,162.38,2.23]
[1754263819661,3.48,162.44,162.39,8.3873]
[1754263819860,3.48,162.44,162.4,2.23]
[1754263820259,3.48,162.44,162.4,8.3873]
[1754263820462,3.48,162.44,162.41,2.23]
[1754263820761,3.48,162.46,162.4,2.23]
[1754263821064,3.48,162.44,162.39,4.51385505]
[1754263821360,3.48,162.44,162.41,2.23]
[1754263821865,3.48,162.44,162.41,8.3866]
[1754263822267,3.48,162.44,162.41,2.23]
[1754263822453,3.48,162.5,162.38,2.23]
[1754263822659,4.56967243,162.49,162.43,2.23]
[1754263822860,3.48,162.47,162.43,2.23]
[1754263823060,3.48,162.49,162.43,2.23]
[1754263823366,3.48,162.47,162.44,2.23]
[1754263823962,3.48,162.47,162.44,8.3855]
[1754263824363,3.48,162.47,162.4,2.23]
[1754263824564,3.48,162.47,162.42,6.1565]
[1754263824765,3.48,162.47,162.42,8.3865]
[1754263824970,3.48,162.47,162.42,2.23]
[1754263825165,3.48,162.47,162.39,4.51385505]
[1754263825371,3.48,162.45,162.4,2.23]
[1754263825669,3.48,162.45,162.38,2.23]
[1754263826968,3.48,162.43,162.4,6.157]
[1754263827863,3.48,162.43,162.41,6.1569]
[1754263828766,3.48,162.43,162.4,6.1572]
[1754263828963,3.48,162.43,162.39,2.23]
[1754263829162,3.48,162.43,162.37,115.85]
[1754263829567,4.57826046,162.42,162.36,230.34025687]
[1754263829768,3.48,162.4,162.36,236.49895687]
[1754263830167,3.48,162.4,162.37,2.23]
[1754263830374,3.48,162.39,162.37,2.23]
[1754263830672,3.48,162.39,162.38,6.1579]
[1754263830868,3.48,162.41,162.38,2.23]
[1754263831071,3.48,162.45,162.39,114.16]
[1754263831374,4.57783718,162.44,162.4,2.23]
[1754263831673,11.42623616,162.49,162.42,6.1563]
[1754263831674,3.48,162.43,162.42,6.1563]
[1754263832570,3.48,162.42,162.41,6.1568]
[1754263833573,3.48,162.42,162.39,114.16]
[1754263833977,4.58177679,162.41,162.39,114.16]
[1754263834174,3.48,162.39,162.36,232.57025687]
[1754263834372,3.48,162.39,162.36,2.23]
[1754263835176,4.58174826,162.38,162.35,114.2]
[1754263835379,3.48,162.36,162.35,114.2]
[1754263835681,3.48,162.36,162.35,116.43]
[1754263835880,10.67085505,162.41,162.36,6.1586]
[1754263836177,3.48,162.37,162.36,8.3886]